[Event "Live Chess"]
[Site "Chess.com"]
[Date "2024.06.02"]
[Round "-"]
[White "gmnorfolk"]
[Black "GEMdzq"]
[Result "0-1"]
[WhiteElo "2133"]
[BlackElo "2274"]
[TimeControl "300"]
[EndTime "7:51:58 PDT"]
[Termination "GEMdzq won by resignation"]

1. Nf3 {[%clk 0:04:56.4]} 1... e6 {[%clk 0:04:56.5]} 2. c4 {[%clk 0:04:53.3]}
2... Nf6 {[%clk 0:04:54.5]} 3. d4 {[%clk 0:04:51.9]} 3... c5 {[%clk 0:04:52.4]}
4. Nc3 {[%clk 0:04:44.8]} 4... cxd4 {[%clk 0:04:51.5]} 5. Nxd4 {[%clk
0:04:43.8]} 5... Nc6 {[%clk 0:04:50.4]} 6. g3 {[%clk 0:04:42.7]} 6... Bc5 {[%clk
0:04:39.7]} 7. Nb3 {[%clk 0:04:38.9]} 7... Be7 {[%clk 0:04:38]} 8. Bg2 {[%clk
0:04:36.5]} 8... O-O {[%clk 0:04:37.2]} 9. O-O {[%clk 0:04:35.5]} 9... d6 {[%clk
0:04:34.2]} 10. e4 {[%clk 0:04:34.5]} 10... a6 {[%clk 0:04:31.3]} 11. Be3 {[%clk
0:04:32.7]} 11... Qc7 {[%clk 0:04:26.4]} 12. Na4 {[%clk 0:04:29.8]} 12... Nd7
{[%clk 0:04:24.2]} 13. Rc1 {[%clk 0:04:24.1]} 13... b6 {[%clk 0:04:19.1]} 14.
Re1 {[%clk 0:04:07]} 14... Bb7 {[%clk 0:04:18]} 15. Nd4 {[%clk 0:04:01.6]} 15...
Bf6 {[%clk 0:04:12.1]} 16. b3 {[%clk 0:03:47.5]} 16... Nc5 {[%clk 0:04:08.1]}
17. Nxc5 {[%clk 0:03:40.9]} 17... bxc5 {[%clk 0:04:05.4]} 18. Nxc6 {[%clk
0:03:37.5]} 18... Bxc6 {[%clk 0:04:04]} 19. f4 {[%clk 0:03:36.3]} 19... Rfd8
{[%clk 0:03:58]} 20. Qc2 {[%clk 0:03:17.8]} 20... a5 {[%clk 0:03:53.1]} 21. a4
{[%clk 0:02:57.4]} 21... Rab8 {[%clk 0:03:50.8]} 22. Rb1 {[%clk 0:02:54]} 22...
Rb7 {[%clk 0:03:44.5]} 23. Qf2 {[%clk 0:02:32.6]} 23... Rdb8 {[%clk 0:03:39.7]}
24. e5 {[%clk 0:02:22.9]} 24... dxe5 {[%clk 0:03:38.1]} 25. fxe5 {[%clk
0:02:19.4]} 25... Bxe5 {[%clk 0:03:33.8]} 26. Bxc5 {[%clk 0:02:17.5]} 26... Bxg2
{[%clk 0:03:30.3]} 27. Kxg2 {[%clk 0:02:13.7]} 27... Rxb3 {[%clk 0:03:26.5]} 28.
Rxb3 {[%clk 0:01:58.2]} 28... Rxb3 {[%clk 0:03:26.4]} 29. Bd4 {[%clk 0:01:47.2]}
29... Bxd4 {[%clk 0:03:14.5]} 30. Qxd4 {[%clk 0:01:42.8]} 30... Qc6+ {[%clk
0:02:55.9]} 31. Kh3 {[%clk 0:01:38.8]} 31... h6 {[%clk 0:02:48.1]} 32. Rf1
{[%clk 0:01:27.4]} 32... Rb8 {[%clk 0:02:27.9]} 33. Qa7 {[%clk 0:01:18.5]} 33...
Rf8 {[%clk 0:02:25.2]} 34. c5 {[%clk 0:01:08.1]} 34... Qxa4 {[%clk 0:02:16.2]}
35. Qb6 {[%clk 0:01:04.4]} 35... Qc4 {[%clk 0:02:12.4]} 36. Rd1 {[%clk
0:00:48.4]} 36... h5 {[%clk 0:02:04.8]} 37. Rd2 {[%clk 0:00:27.1]} 37... g5
{[%clk 0:01:59.5]} 38. c6 {[%clk 0:00:21.5]} 38... Qf1+ {[%clk 0:01:56]} 0-1

[Event "Live Chess"]
[Site "Chess.com"]
[Date "2024.06.02"]
[Round "-"]
[White "Bradfield133"]
[Black "lyricalschemes"]
[Result "0-1"]
[WhiteElo "1846"]
[BlackElo "2227"]
[TimeControl "300"]
[EndTime "7:52:25 PDT"]
[Termination "lyricalschemes won on time"]

1. c4 {[%clk 0:04:58.1]} 1... e5 {[%clk 0:04:58.5]} 2. g3 {[%clk 0:04:55.5]}
2... Nf6 {[%clk 0:04:57.2]} 3. Bg2 {[%clk 0:04:54.6]} 3... c6 {[%clk 0:04:55.2]}
4. d4 {[%clk 0:04:52.4]} 4... e4 {[%clk 0:04:53.8]} 5. Nc3 {[%clk 0:04:50]} 5...
d5 {[%clk 0:04:52.8]} 6. cxd5 {[%clk 0:04:49.7]} 6... cxd5 {[%clk 0:04:51.3]} 7.
Bg5 {[%clk 0:04:49.4]} 7... Be6 {[%clk 0:04:49.2]} 8. Nh3 {[%clk 0:04:43.3]}
8... Nc6 {[%clk 0:04:44.8]} 9. Nf4 {[%clk 0:04:38.4]} 9... Be7 {[%clk
0:04:42.6]} 10. O-O {[%clk 0:04:26.5]} 10... O-O {[%clk 0:04:40.5]} 11. f3
{[%clk 0:04:20.7]} 11... exf3 {[%clk 0:04:38.5]} 12. Bxf3 {[%clk 0:04:18.7]}
12... Qb6 {[%clk 0:04:33.7]} 13. e3 {[%clk 0:03:56.5]} 13... Qxb2 {[%clk
0:04:26.2]} 14. Bxf6 {[%clk 0:03:50]} 14... Qxc3 {[%clk 0:04:20]} 15. Bxe7
{[%clk 0:03:47]} 15... Qxe3+ {[%clk 0:04:17.4]} 16. Kg2 {[%clk 0:03:39.5]} 16...
Nxe7 {[%clk 0:04:16.2]} 17. Re1 {[%clk 0:03:36.5]} 17... Qa3 {[%clk 0:04:04.2]}
18. Nxe6 {[%clk 0:03:34.1]} 18... fxe6 {[%clk 0:04:03.1]} 19. Rxe6 {[%clk
0:03:30.3]} 19... Qb2+ {[%clk 0:03:48.4]} 20. Re2 {[%clk 0:03:19.3]} 20... Qa3
{[%clk 0:03:44.5]} 21. Rc2 {[%clk 0:03:08.4]} 21... Rac8 {[%clk 0:03:38.3]} 22.
Rxc8 {[%clk 0:03:02.3]} 22... Rxc8 {[%clk 0:03:38.2]} 23. Qb3 {[%clk 0:02:49.2]}
23... Qxb3 {[%clk 0:03:29.1]} 24. axb3 {[%clk 0:02:47.6]} 24... Rc2+ {[%clk
0:03:26.3]} 25. Kg1 {[%clk 0:02:40.4]} 25... a6 {[%clk 0:03:25]} 26. Re1 {[%clk
0:02:34.6]} 26... Kf7 {[%clk 0:03:18.5]} 27. Re5 {[%clk 0:02:20.1]} 27... Rc3
{[%clk 0:03:11.9]} 28. Bxd5+ {[%clk 0:02:07.8]} 28... Nxd5 {[%clk 0:03:09.4]}
29. Rxd5 {[%clk 0:02:06.9]} 29... Rxb3 {[%clk 0:03:09]} 30. Rd7+ {[%clk
0:02:06]} 30... Kf6 {[%clk 0:03:06.8]} 31. Kf2 {[%clk 0:01:52.6]} 31... Rb2+
{[%clk 0:03:05]} 32. Ke3 {[%clk 0:01:50.8]} 32... a5 {[%clk 0:03:00.2]} 33. h4
{[%clk 0:01:40]} 33... a4 {[%clk 0:02:50.6]} 34. Kd3 {[%clk 0:01:28]} 34... a3
{[%clk 0:00:50.1]} 35. Kc3 {[%clk 0:01:18]} 35... Rg2 {[%clk 0:00:45.5]} 36.
Rxb7 {[%clk 0:01:14]} 36... Rxg3+ {[%clk 0:00:45.2]} 37. Kc4 {[%clk 0:01:04.6]}
37... Rg4 {[%clk 0:00:41.4]} 38. Ra7 {[%clk 0:01:01.7]} 38... Rxh4 {[%clk
0:00:40]} 39. Rxa3 {[%clk 0:00:59.2]} 39... Rh1 {[%clk 0:00:39.7]} 40. Ra6+
{[%clk 0:00:53]} 40... Kf5 {[%clk 0:00:37.6]} 41. d5 {[%clk 0:00:44.4]} 41...
Rc1+ {[%clk 0:00:36.8]} 42. Kd4 {[%clk 0:00:43]} 42... Rd1+ {[%clk 0:00:35.7]}
43. Kc5 {[%clk 0:00:39.6]} 43... Ke5 {[%clk 0:00:35.1]} 44. Re6+ {[%clk
0:00:36.7]} 44... Kf5 {[%clk 0:00:33.5]} 45. Re7 {[%clk 0:00:34.1]} 45... Rc1+
{[%clk 0:00:32]} 46. Kd4 {[%clk 0:00:27.7]} 46... Rd1+ {[%clk 0:00:31.2]} 47.
Kc5 {[%clk 0:00:26.4]} 47... Rc1+ {[%clk 0:00:30.4]} 48. Kd4 {[%clk 0:00:25.4]}
48... Kf6 {[%clk 0:00:30.1]} 49. d6 {[%clk 0:00:23.2]} 49... Rd1+ {[%clk
0:00:29.5]} 50. Kc5 {[%clk 0:00:22.2]} 50... Rc1+ {[%clk 0:00:29.2]} 51. Kd5
{[%clk 0:00:21]} 51... h5 {[%clk 0:00:28.4]} 52. Re2 {[%clk 0:00:15.9]} 52...
Rd1+ {[%clk 0:00:27.2]} 53. Kc6 {[%clk 0:00:13.9]} 53... Rc1+ {[%clk 0:00:26.5]}
54. Kd5 {[%clk 0:00:11.4]} 54... g5 {[%clk 0:00:25.5]} 55. Rf2+ {[%clk
0:00:08.6]} 55... Kg6 {[%clk 0:00:24]} 56. d7 {[%clk 0:00:07.9]} 56... Rd1+
{[%clk 0:00:23.3]} 57. Ke6 {[%clk 0:00:06.4]} 57... Re1+ {[%clk 0:00:22.9]} 58.
Kd6 {[%clk 0:00:05]} 58... Rd1+ {[%clk 0:00:22.6]} 59. Ke7 {[%clk 0:00:04]}
59... Rxd7+ {[%clk 0:00:22.3]} 60. Kxd7 {[%clk 0:00:02.6]} 60... g4 {[%clk
0:00:22.2]} 0-1

[Event "Live Chess"]
[Site "Chess.com"]
[Date "2024.06.02"]
[Round "-"]
[White "GwaryTek"]
[Black "DylanMeyer1"]
[Result "1-0"]
[WhiteElo "1890"]
[BlackElo "1723"]
[TimeControl "300"]
[EndTime "7:52:31 PDT"]
[Termination "GwaryTek won by checkmate"]

1. d4 {[%clk 0:04:56.3]} 1... d5 {[%clk 0:04:55.8]} 2. c4 {[%clk 0:04:54.9]}
2... e6 {[%clk 0:04:54.3]} 3. Nc3 {[%clk 0:04:53.4]} 3... Be7 {[%clk 0:04:53.8]}
4. Nf3 {[%clk 0:04:53.1]} 4... Nf6 {[%clk 0:04:53.3]} 5. cxd5 {[%clk 0:04:51.7]}
5... O-O {[%clk 0:04:53.2]} 6. dxe6 {[%clk 0:04:49.6]} 6... Bxe6 {[%clk
0:04:53.1]} 7. g3 {[%clk 0:04:47.2]} 7... c6 {[%clk 0:04:51.1]} 8. Bg2 {[%clk
0:04:46.4]} 8... Qc8 {[%clk 0:04:48.6]} 9. O-O {[%clk 0:04:45.8]} 9... Bh3
{[%clk 0:04:47.7]} 10. Bg5 {[%clk 0:04:33.5]} 10... Bxg2 {[%clk 0:04:28.6]} 11.
Kxg2 {[%clk 0:04:33.4]} 11... h6 {[%clk 0:04:12.1]} 12. Bxf6 {[%clk 0:04:28.1]}
12... Bxf6 {[%clk 0:04:10.6]} 13. e4 {[%clk 0:04:28]} 13... g6 {[%clk
0:04:04.2]} 14. Qe2 {[%clk 0:04:24.3]} 14... Bg7 {[%clk 0:04:00.6]} 15. Rac1
{[%clk 0:04:22.8]} 15... Nd7 {[%clk 0:03:55.1]} 16. Rfd1 {[%clk 0:04:13.7]}
16... Nf6 {[%clk 0:03:35.4]} 17. e5 {[%clk 0:03:52.7]} 17... Nh7 {[%clk
0:03:17]} 18. Ne4 {[%clk 0:03:48.1]} 18... Qe6 {[%clk 0:03:11.5]} 19. b3 {[%clk
0:03:36.3]} 19... Rad8 {[%clk 0:02:43.5]} 20. Nc5 {[%clk 0:03:30.9]} 20... Qg4
{[%clk 0:02:32.5]} 21. h3 {[%clk 0:03:25.9]} 21... Qc8 {[%clk 0:02:30.4]} 22. e6
{[%clk 0:03:16.4]} 22... Rde8 {[%clk 0:02:08.2]} 23. exf7+ {[%clk 0:03:11.6]}
23... Rxf7 {[%clk 0:02:07.1]} 24. Qc4 {[%clk 0:03:04.7]} 24... Ng5 {[%clk
0:01:40.3]} 25. Nxg5 {[%clk 0:02:45.6]} 25... hxg5 {[%clk 0:01:37.8]} 26. Re1
{[%clk 0:02:43.5]} 26... Rxe1 {[%clk 0:01:33.1]} 27. Rxe1 {[%clk 0:02:43.4]}
27... Qf5 {[%clk 0:01:31.6]} 28. Ne4 {[%clk 0:01:27.1]} 28... Qf3+ {[%clk
0:01:14]} 29. Kg1 {[%clk 0:01:19.3]} 29... Bh6 {[%clk 0:00:38.7]} 30. Qe2 {[%clk
0:00:47.4]} 30... Qf5 {[%clk 0:00:30.9]} 31. Nd6 {[%clk 0:00:41.2]} 31... Qxh3
{[%clk 0:00:13.8]} 32. Nxf7 {[%clk 0:00:27.9]} 32... Kxf7 {[%clk 0:00:13.7]} 33.
Qe8+ {[%clk 0:00:20.3]} 33... Kg7 {[%clk 0:00:12.6]} 34. Re7+ {[%clk 0:00:17.9]}
34... Kf6 {[%clk 0:00:09.7]} 35. Qf7# {[%clk 0:00:16.4]} 1-0

[Event "Live Chess"]
[Site "Chess.com"]
[Date "2024.06.02"]
[Round "-"]
[White "agamilewska"]
[Black "missedJariChance"]
[Result "1-0"]
[WhiteElo "1786"]
[BlackElo "1364"]
[TimeControl "300"]
[EndTime "7:52:38 PDT"]
[Termination "agamilewska won by resignation"]

1. d4 {[%clk 0:04:56.1]} 1... d5 {[%clk 0:04:58.6]} 2. Nf3 {[%clk 0:04:54.8]}
2... c5 {[%clk 0:04:55.4]} 3. Bf4 {[%clk 0:04:53.5]} 3... e6 {[%clk 0:04:53.8]}
4. e3 {[%clk 0:04:52.3]} 4... Nc6 {[%clk 0:04:51.8]} 5. c4 {[%clk 0:04:51.5]}
5... cxd4 {[%clk 0:04:38.5]} 6. Nxd4 {[%clk 0:04:47.4]} 6... Nf6 {[%clk
0:04:28.1]} 7. cxd5 {[%clk 0:04:42.6]} 7... Nxd5 {[%clk 0:04:26]} 8. Nxc6 {[%clk
0:04:41.6]} 8... bxc6 {[%clk 0:04:18.4]} 9. Bc4 {[%clk 0:04:38.3]} 9... Be7
{[%clk 0:04:12]} 10. Bxd5 {[%clk 0:04:36.4]} 10... exd5 {[%clk 0:04:03.5]} 11.
O-O {[%clk 0:04:34.8]} 11... O-O {[%clk 0:04:00.1]} 12. Nc3 {[%clk 0:04:33.6]}
12... Rb8 {[%clk 0:03:56.6]} 13. Bxb8 {[%clk 0:04:32]} 1-0

[Event "Live Chess"]
[Site "Chess.com"]
[Date "2024.06.02"]
[Round "-"]
[White "Bunny55"]
[Black "StoreySniper"]
[Result "0-1"]
[WhiteElo "1160"]
[BlackElo "2489"]
[TimeControl "300"]
[EndTime "7:52:40 PDT"]
[Termination "StoreySniper won by resignation"]

1. e4 {[%clk 0:04:54.2]} 1... d5 {[%clk 0:04:59]} 2. exd5 {[%clk 0:04:52.2]}
2... Nf6 {[%clk 0:04:58.3]} 3. Nc3 {[%clk 0:04:50.9]} 3... Bg4 {[%clk
0:04:55.9]} 4. f3 {[%clk 0:04:49.1]} 4... Bf5 {[%clk 0:04:53.9]} 5. d4 {[%clk
0:04:47.4]} 5... Nxd5 {[%clk 0:04:51.2]} 6. Nxd5 {[%clk 0:04:45.6]} 6... Qxd5
{[%clk 0:04:50.5]} 7. c4 {[%clk 0:04:40.2]} 7... Qe6+ {[%clk 0:04:38.6]} 8. Be2
{[%clk 0:04:37.3]} 8... Na6 {[%clk 0:04:27.1]} 9. d5 {[%clk 0:04:34.2]} 9... Qg6
{[%clk 0:04:24]} 10. Nh3 {[%clk 0:04:19.7]} 10... Bxh3 {[%clk 0:04:21.9]} 11.
gxh3 {[%clk 0:04:18.5]} 11... O-O-O {[%clk 0:04:12.7]} 12. Bd3 {[%clk 0:04:15]}
12... Qg2 {[%clk 0:04:08.5]} 13. Rf1 {[%clk 0:04:11.8]} 13... e6 {[%clk
0:04:03.2]} 14. c5 {[%clk 0:04:09.2]} 14... Rxd5 {[%clk 0:03:54.3]} 15. Qe2
{[%clk 0:04:03.4]} 15... Qxe2+ {[%clk 0:03:47.5]} 16. Bxe2 {[%clk 0:04:01.1]}
16... Nxc5 {[%clk 0:03:44.5]} 17. Be3 {[%clk 0:03:58.6]} 17... Nd3+ {[%clk
0:03:39.2]} 0-1

[Event "Live Chess"]
[Site "Chess.com"]
[Date "2024.06.02"]
[Round "-"]
[White "dmitro74"]
[Black "santhoshrlokesh"]
[Result "1-0"]
[WhiteElo "1747"]
[BlackElo "1451"]
[TimeControl "300"]
[EndTime "7:52:48 PDT"]
[Termination "dmitro74 won on time"]

1. d4 {[%clk 0:04:57.3]} 1... d5 {[%clk 0:04:59.1]} 2. c4 {[%clk 0:04:56.4]}
2... dxc4 {[%clk 0:04:54.7]} 3. Nc3 {[%clk 0:04:54.7]} 3... Bf5 {[%clk
0:04:51.7]} 4. e4 {[%clk 0:04:51.9]} 4... Bg6 {[%clk 0:04:47]} 5. Bxc4 {[%clk
0:04:50.1]} 5... e6 {[%clk 0:04:45.2]} 6. Nf3 {[%clk 0:04:45.6]} 6... Bb4 {[%clk
0:04:35.1]} 7. Qa4+ {[%clk 0:04:36.6]} 7... Nc6 {[%clk 0:04:32.3]} 8. d5 {[%clk
0:04:35.5]} 8... exd5 {[%clk 0:04:22]} 9. exd5 {[%clk 0:04:34.2]} 9... Bxc3+
{[%clk 0:04:17.5]} 10. bxc3 {[%clk 0:04:32.8]} 10... a6 {[%clk 0:03:51.4]} 11.
dxc6 {[%clk 0:04:30.9]} 11... b5 {[%clk 0:03:50.1]} 12. Bxb5 {[%clk 0:03:54.7]}
12... axb5 {[%clk 0:03:46.3]} 13. Qxb5 {[%clk 0:03:53.5]} 13... Nf6 {[%clk
0:03:37]} 14. Qe5+ {[%clk 0:03:40.7]} 14... Qe7 {[%clk 0:03:24.7]} 15. Qxe7+
{[%clk 0:03:39.4]} 15... Kxe7 {[%clk 0:03:23.5]} 16. O-O {[%clk 0:03:38.8]}
16... Rhe8 {[%clk 0:03:12.8]} 17. Re1+ {[%clk 0:03:23.7]} 17... Kd6 {[%clk
0:03:07.7]} 18. Rxe8 {[%clk 0:03:16.6]} 18... Rxe8 {[%clk 0:03:05.6]} 19. Bf4+
{[%clk 0:03:06]} 19... Kxc6 {[%clk 0:03:03.8]} 20. h3 {[%clk 0:03:05]} 20... Nd5
{[%clk 0:02:58.3]} 21. Nd4+ {[%clk 0:03:00.2]} 21... Kd7 {[%clk 0:02:47]} 22.
Bg3 {[%clk 0:02:57.4]} 22... Nxc3 {[%clk 0:02:39.1]} 23. a4 {[%clk 0:02:46.6]}
23... c5 {[%clk 0:02:32.4]} 24. Nb5 {[%clk 0:02:41.4]} 24... Nxb5 {[%clk
0:02:19.2]} 25. axb5 {[%clk 0:02:40.1]} 25... Be4 {[%clk 0:02:10.3]} 26. f3
{[%clk 0:02:32.4]} 26... Bb7 {[%clk 0:02:01.4]} 27. Ra7 {[%clk 0:02:28.8]} 27...
Kc8 {[%clk 0:01:52.9]} 28. b6 {[%clk 0:02:23.1]} 28... Re6 {[%clk 0:01:40.3]}
29. Ra5 {[%clk 0:02:17.6]} 29... Rc6 {[%clk 0:01:16.1]} 30. Bf2 {[%clk
0:02:04.1]} 30... c4 {[%clk 0:01:07.1]} 31. Ra1 {[%clk 0:01:51.7]} 31... c3
{[%clk 0:00:56.6]} 32. Rc1 {[%clk 0:01:50.1]} 32... Rc4 {[%clk 0:00:49.4]} 33.
Kf1 {[%clk 0:01:44.9]} 33... Bc6 {[%clk 0:00:47.1]} 34. Ke1 {[%clk 0:01:42.9]}
34... Ba4 {[%clk 0:00:45.9]} 35. Ke2 {[%clk 0:01:33.9]} 35... c2 {[%clk
0:00:42.7]} 36. Kd3 {[%clk 0:01:30.2]} 36... Rc6 {[%clk 0:00:35.6]} 37. Be3
{[%clk 0:01:26.3]} 37... g6 {[%clk 0:00:31.5]} 38. Ra1 {[%clk 0:01:23.9]} 38...
Bb3 {[%clk 0:00:22.1]} 39. Bd4 {[%clk 0:01:04.2]} 39... c1=Q {[%clk 0:00:16.8]}
40. Rxc1 {[%clk 0:00:59.5]} 40... Rxc1 {[%clk 0:00:15.7]} 41. g4 {[%clk
0:00:51.3]} 41... Rd1+ {[%clk 0:00:14]} 42. Ke3 {[%clk 0:00:49.6]} 42... Kb7
{[%clk 0:00:12.2]} 43. Bc5 {[%clk 0:00:43.2]} 43... Bc4 {[%clk 0:00:10.7]} 44.
h4 {[%clk 0:00:40.1]} 44... Rd3+ {[%clk 0:00:08.8]} 45. Kf4 {[%clk 0:00:37.4]}
45... Rb3 {[%clk 0:00:06]} 46. Kg5 {[%clk 0:00:34.7]} 46... h5 {[%clk
0:00:02.5]} 47. gxh5 {[%clk 0:00:32.5]} 47... gxh5 {[%clk 0:00:01.2]} 48. Kxh5
{[%clk 0:00:30.9]} 1-0

[Event "Live Chess"]
[Site "Chess.com"]
[Date "2024.06.02"]
[Round "-"]
[White "nitrofish07"]
[Black "Step-S"]
[Result "1-0"]
[WhiteElo "2080"]
[BlackElo "1280"]
[TimeControl "300"]
[EndTime "7:52:51 PDT"]
[Termination "nitrofish07 won by checkmate"]

1. e4 {[%clk 0:04:57.7]} 1... g6 {[%clk 0:04:55.6]} 2. d4 {[%clk 0:04:56.6]}
2... Bg7 {[%clk 0:04:54.9]} 3. Nc3 {[%clk 0:04:55.8]} 3... d6 {[%clk 0:04:51.4]}
4. Be3 {[%clk 0:04:54.8]} 4... Nf6 {[%clk 0:04:47.1]} 5. f3 {[%clk 0:04:53.9]}
5... O-O {[%clk 0:04:45.7]} 6. Qd2 {[%clk 0:04:53.4]} 6... c6 {[%clk 0:04:39.2]}
7. h4 {[%clk 0:04:51.3]} 7... e5 {[%clk 0:04:25.1]} 8. Nge2 {[%clk 0:04:43.9]}
8... Nbd7 {[%clk 0:04:11.8]} 9. g4 {[%clk 0:04:40.6]} 9... Nb6 {[%clk
0:03:59.1]} 10. b3 {[%clk 0:04:37.1]} 10... Nxg4 {[%clk 0:03:45.8]} 11. fxg4
{[%clk 0:04:18.5]} 11... Bxg4 {[%clk 0:03:42.9]} 12. O-O-O {[%clk 0:04:16.5]}
12... exd4 {[%clk 0:03:25.1]} 13. Bxd4 {[%clk 0:04:14.1]} 13... Bxd4 {[%clk
0:03:17.7]} 14. Qxd4 {[%clk 0:04:12.2]} 14... d5 {[%clk 0:02:45.6]} 15. exd5
{[%clk 0:04:00.3]} 15... cxd5 {[%clk 0:02:42.6]} 16. Qxg4 {[%clk 0:03:58.1]}
16... Qf6 {[%clk 0:02:29.4]} 17. Qd4 {[%clk 0:03:48.7]} 17... Qe7 {[%clk
0:02:06.9]} 18. h5 {[%clk 0:03:44.5]} 18... Qa3+ {[%clk 0:02:01.3]} 19. Kb1
{[%clk 0:03:42.9]} 19... a5 {[%clk 0:01:53.3]} 20. hxg6 {[%clk 0:03:39.8]} 20...
fxg6 {[%clk 0:01:49]} 21. Nxd5 {[%clk 0:03:37.3]} 21... Nd7 {[%clk 0:01:17.8]}
22. Nec3 {[%clk 0:03:30.8]} 22... Rad8 {[%clk 0:00:39.7]} 23. Bc4 {[%clk
0:03:27.9]} 23... Nb6 {[%clk 0:00:36.9]} 24. Ne7# {[%clk 0:03:25.6]} 1-0

[Event "Live Chess"]
[Site "Chess.com"]
[Date "2024.06.02"]
[Round "-"]
[White "silunn"]
[Black "Frankie_Badacsonyi"]
[Result "0-1"]
[WhiteElo "2059"]
[BlackElo "2370"]
[TimeControl "300"]
[EndTime "7:52:58 PDT"]
[Termination "Frankie_Badacsonyi won by resignation"]

1. e4 {[%clk 0:04:59.1]} 1... g6 {[%clk 0:04:59.3]} 2. Nf3 {[%clk 0:04:58.4]}
2... Bg7 {[%clk 0:04:58.8]} 3. Nc3 {[%clk 0:04:58.1]} 3... c6 {[%clk 0:04:58.3]}
4. d4 {[%clk 0:04:57.8]} 4... d5 {[%clk 0:04:57.8]} 5. e5 {[%clk 0:04:57.4]}
5... Bg4 {[%clk 0:04:56]} 6. Be2 {[%clk 0:04:56.8]} 6... e6 {[%clk 0:04:53.6]}
7. O-O {[%clk 0:04:56]} 7... Ne7 {[%clk 0:04:51.3]} 8. h3 {[%clk 0:04:54.7]}
8... Bxf3 {[%clk 0:04:50.4]} 9. Bxf3 {[%clk 0:04:54.6]} 9... O-O {[%clk
0:04:47.9]} 10. Ne2 {[%clk 0:04:54.1]} 10... c5 {[%clk 0:04:46.9]} 11. c3 {[%clk
0:04:53.4]} 11... cxd4 {[%clk 0:04:45.6]} 12. cxd4 {[%clk 0:04:52.7]} 12... Nbc6
{[%clk 0:04:45.3]} 13. a3 {[%clk 0:04:50.9]} 13... Rc8 {[%clk 0:04:43.3]} 14.
Bg5 {[%clk 0:04:49.5]} 14... Qb6 {[%clk 0:04:39.1]} 15. Qd2 {[%clk 0:04:47.2]}
15... Nf5 {[%clk 0:04:35]} 16. Rfd1 {[%clk 0:04:40.2]} 16... Rfe8 {[%clk
0:04:30.8]} 17. g4 {[%clk 0:04:34.3]} 17... Nfe7 {[%clk 0:04:29.4]} 18. Rac1
{[%clk 0:04:32.8]} 18... Na5 {[%clk 0:04:26.6]} 19. Bxe7 {[%clk 0:04:24.3]}
19... Rxc1 {[%clk 0:04:03.2]} 20. Rxc1 {[%clk 0:04:22.8]} 20... Nb3 {[%clk
0:03:56.5]} 21. Qb4 {[%clk 0:03:47.7]} 21... Qxb4 {[%clk 0:03:51.8]} 22. Bxb4
{[%clk 0:03:45.5]} 22... Nxc1 {[%clk 0:03:51.4]} 23. Nxc1 {[%clk 0:03:45.4]}
23... Rc8 {[%clk 0:03:49.5]} 24. Nd3 {[%clk 0:03:37.7]} 24... Bf8 {[%clk
0:03:40]} 25. Bxf8 {[%clk 0:03:23.9]} 25... Kxf8 {[%clk 0:03:39.9]} 26. Bd1
{[%clk 0:03:23]} 26... Rc4 {[%clk 0:03:37.4]} 27. Bb3 {[%clk 0:03:16.1]} 27...
Rxd4 {[%clk 0:03:35.4]} 28. Nc5 {[%clk 0:03:15]} 28... b6 {[%clk 0:03:24.1]} 29.
Na4 {[%clk 0:02:49.6]} 29... Rd2 {[%clk 0:03:21.1]} 30. Kf1 {[%clk 0:02:47.3]}
30... b5 {[%clk 0:03:05]} 31. Ke1 {[%clk 0:02:41]} 31... Rd4 {[%clk 0:03:02]}
32. Nc3 {[%clk 0:02:21.6]} 32... b4 {[%clk 0:02:45.7]} 33. Ne2 {[%clk
0:01:13.3]} 33... Re4 {[%clk 0:02:43.5]} 34. f4 {[%clk 0:01:05.4]} 34... bxa3
{[%clk 0:02:41.2]} 35. bxa3 {[%clk 0:01:04.4]} 35... Re3 {[%clk 0:02:40.3]} 36.
Bd1 {[%clk 0:00:59.2]} 36... Rxa3 {[%clk 0:02:39]} 37. Ng1 {[%clk 0:00:57.3]}
37... Ke7 {[%clk 0:02:28.1]} 38. Kf2 {[%clk 0:00:54.3]} 38... a5 {[%clk
0:02:26.3]} 39. Nf3 {[%clk 0:00:53.3]} 39... a4 {[%clk 0:02:22.8]} 40. h4 {[%clk
0:00:53]} 40... Ra1 {[%clk 0:02:20.9]} 41. Bc2 {[%clk 0:00:49.6]} 41... a3
{[%clk 0:02:20.1]} 42. Bb3 {[%clk 0:00:44.5]} 42... a2 {[%clk 0:02:19]} 43. Nd4
{[%clk 0:00:42.1]} 43... Rf1+ {[%clk 0:02:15.8]} 0-1